bitfinex-derivatives/quotes_BTCF0:USTF0_20241125
["timestamp","ask_amount","ask_price","bid_price","bid_amount"]
[1732551189203,0.12440331,96166.0,96164.0,0.051991]
[1732551189399,0.61495698,96178.0,96159.0,0.7216]
[1732551189400,0.12440331,96171.0,96159.0,0.7216]
[1732551189596,0.12440331,96171.0,96170.0,0.412788]
[1732551189799,0.01627698,96178.0,96176.0,0.051985]
[1732551190098,0.23792,96181.0,96176.0,0.051985]
[1732551190494,0.02080231,96178.0,96176.0,0.051985]
[1732551191002,0.01786231,96178.0,96176.0,0.051985]
[1732551191399,0.01786231,96178.0,96170.0,0.3608]
[1732551191698,0.051986,96175.0,96172.0,0.051987]
[1732551191903,0.051987,96173.0,96165.0,0.051991]
[1732551192100,0.051987,96173.0,96159.0,0.3608]
[1732551192101,0.12944197,96172.0,96170.0,0.051988]
[1732551192306,0.12420263,96171.0,96170.0,0.051988]
[1732551192903,0.12420263,96172.0,96170.0,0.051988]
[1732551193297,0.12420263,96174.0,96172.0,0.051987]
[1732551193501,0.01786231,96178.0,96159.0,0.42877234]
[1732551193700,0.01886231,96178.0,96159.0,0.42877234]
[1732551194001,0.01886231,96178.0,96176.0,0.051984]
[1732551194708,0.01786231,96178.0,96176.0,0.051984]
[1732551195306,0.12420263,96189.0,96172.0,0.3608]
[1732551195510,0.12420263,96191.0,96189.0,0.051978]
[1732551195809,0.02080231,96194.0,96189.0,0.051978]
[1732551195810,0.23792,96190.0,96189.0,0.051978]
[1732551196503,0.67400263,96190.0,96189.0,0.051978]
[1732551196708,0.43608263,96190.0,96189.0,0.051978]
[1732551196906,0.31188,96190.0,96189.0,0.051978]
[1732551197306,0.02080231,96194.0,96192.0,0.051976]
[1732551197616,0.0609,96205.0,96184.0,0.3608]
[1732551197617,0.0015601,96198.0,96196.0,0.051974]
[1732551197998,0.14500494,96210.0,96196.0,0.051974]
[1732551197999,0.02080231,96210.0,96196.0,0.051974]
[1732551198297,0.02080231,96210.0,96209.0,0.051967]
[1732551198503,0.02080231,96210.0,96206.0,0.3608]
[1732551198504,0.12420263,96217.0,96215.0,0.051964]
[1732551198713,0.38160231,96226.0,96217.0,0.051963]
[1732551198714,0.12420263,96218.0,96217.0,0.051963]
[1732551199006,0.12420263,96222.0,96206.0,0.3608]
[1732551199202,0.14500494,96226.0,96219.0,0.051961]
[1732551199403,0.14500494,96226.0,96224.0,0.051959]
[1732551199605,0.02080231,96226.0,96224.0,0.051959]
[1732551199809,0.14500494,96226.0,96218.0,0.051962]
[1732551200007,0.02080231,96226.0,96214.0,0.3608]
[1732551200208,0.02080231,96226.0,96214.0,0.37715525]
[1732551200512,0.02080231,96226.0,96224.0,0.051959]
[1732551200702,0.02080231,96226.0,96214.0,0.37715525]
[1732551200703,0.02180231,96226.0,96214.0,0.37715525]
[1732551201104,0.02180231,96226.0,96221.0,0.051961]
[1732551201304,0.02180231,96226.0,96214.0,0.37715525]
[1732551201710,0.02180231,96226.0,96224.0,0.051959]
[1732551203216,0.02180231,96226.0,96224.0,0.412759]
[1732551203418,0.12420263,96236.0,96224.0,0.3608]
[1732551203608,0.12420263,96246.0,96239.0,0.051951]
[1732551203820,0.12420263,96254.0,96239.0,0.051951]
[1732551204020,0.12420263,96251.0,96239.0,0.051951]
[1732551204314,0.12420263,96260.0,96236.0,0.3608]
[1732551204509,0.12420263,96258.0,96254.0,0.051943]
[1732551204712,0.42332503,96269.0,96254.0,0.051943]
[1732551204713,0.12420263,96257.0,96254.0,0.051943]
[1732551204914,0.23752,96269.0,96248.0,0.3608]
[1732551204915,0.12420263,96258.0,96248.0,0.412746]
[1732551205219,0.12420263,96266.0,96260.0,0.05194]
[1732551205410,0.12420263,96270.0,96265.0,0.3608]
[1732551205609,0.02079912,96274.0,96265.0,0.3608]
[1732551205610,0.02079912,96274.0,96273.0,0.051933]
[1732551206220,0.38214563,96281.0,96275.0,0.051931]
[1732551206221,0.12420263,96281.0,96275.0,0.051931]
[1732551206416,0.12420263,96281.0,96267.0,0.3608]
[1732551206417,0.02079912,96280.0,96267.0,0.3608]
[1732551206610,0.02079912,96280.0,96269.0,0.051934]
[1732551206810,0.02079912,96280.0,96270.0,0.051934]
[1732551207320,0.07272812,96280.0,96267.0,0.37744464]
[1732551207517,0.07272812,96280.0,96268.0,0.051935]
[1732551207813,0.07272812,96280.0,96269.0,0.051935]
[1732551208010,0.07272812,96280.0,96267.0,0.37744464]
[1732551208011,0.02079912,96280.0,96272.0,0.051933]
[1732551208210,0.02079912,96280.0,96267.0,0.37744464]
[1732551208211,0.02179912,96280.0,96275.0,0.051931]
[1732551208416,0.02179912,96280.0,96267.0,0.37744464]
[1732551208417,0.02179912,96280.0,96277.0,0.05193]
[1732551208623,0.02079912,96280.0,96277.0,0.05193]
[1732551208922,0.02179912,96280.0,96277.0,0.05193]
[1732551209120,0.02179912,96280.0,96278.0,0.05193]
[1732551210716,0.02179912,96280.0,96275.0,0.3608]
[1732551210717,0.02079912,96280.0,96275.0,0.3608]
[1732551210921,0.02179912,96280.0,96275.0,0.3608]
[1732551211116,0.02179912,96280.0,96267.0,0.3608]
[1732551211333,0.02179912,96280.0,96279.0,0.3608]
[1732551211715,0.33339912,96280.0,96279.0,0.3608]
[1732551212021,0.33339912,96280.0,96267.0,0.3608]
[1732551212215,0.02179912,96280.0,96267.0,0.3608]
[1732551212411,0.02179912,96280.0,96268.0,0.051935]
[1732551212412,0.02079912,96280.0,96268.0,0.051935]
[1732551212612,0.02179912,96280.0,96268.0,0.051935]
[1732551212815,0.02179912,96280.0,96279.0,0.3608]
[1732551213012,0.02179912,96280.0,96279.0,0.412729]
[1732551214517,0.02179912,96280.0,96279.0,0.3608]
[1732551214716,0.02079912,96280.0,96279.0,0.3608]
[1732551214915,0.02179912,96280.0,96279.0,0.3608]
[1732551215614,0.02079912,96280.0,96279.0,0.3608]
[1732551215820,0.02179912,96280.0,96279.0,0.3608]
[1732551216212,0.02179912,96280.0,96272.0,0.051933]
[1732551216813,0.051933,96273.0,96267.0,0.3608]
[1732551217011,0.02179912,96280.0,96270.0,0.051934]
[1732551217321,0.02179912,96280.0,96275.0,0.051931]
[1732551218016,0.0383458,96280.0,96269.0,0.051934]
[1732551218323,0.0383458,96280.0,96256.0,0.3608]
[1732551218324,0.3608,96274.0,96256.0,0.3608]
[1732551218622,0.3608,96274.0,96247.0,0.3608]
[1732551218623,0.3608,96266.0,96247.0,0.3608]
[1732551218923,0.3608,96257.0,96240.0,0.00046]
[1732551219119,0.23736,96256.0,96252.0,0.051943]
[1732551219814,0.31168,96255.0,96242.0,0.3608]
[1732551220015,0.051944,96252.0,96245.0,0.051947]
[1732551220322,0.051944,96252.0,96242.0,0.3608]
[1732551220915,0.23736,96256.0,96242.0,0.3608]
[1732551220916,0.051945,96250.0,96242.0,0.3608]
[1732551221423,0.30581594,96256.0,96249.0,0.051945]
[1732551221620,0.051943,96255.0,96249.0,0.051945]
[1732551221816,0.051943,96255.0,96252.0,0.051944]
[1732551222126,0.25387394,96256.0,96252.0,0.051944]
[1732551222421,0.3608,96257.0,96242.0,0.3608]
[1732551222614,0.001,96250.0,96249.0,0.051946]
[1732551224819,0.001,96250.0,96242.0,0.3608]
[1732551224820,0.001,96255.0,96253.0,0.051943]
[1732551225325,0.001,96250.0,96242.0,0.3608]
[1732551225529,0.051948,96244.0,96242.0,0.3608]
[1732551225716,0.05195,96241.0,96240.0,0.00046]
[1732551226027,0.05711187,96241.0,96240.0,0.00046]
[1732551226230,0.36883187,96241.0,96240.0,0.00046]
[1732551226525,0.46159583,96241.0,96240.0,0.00046]
[1732551226722,0.36883187,96241.0,96240.0,0.00046]
[1732551227121,0.49265667,96241.0,96240.0,0.00046]
[1732551227317,0.36883187,96241.0,96240.0,0.00046]
[1732551228328,0.36983187,96241.0,96240.0,0.00046]
[1732551229318,0.52479732,96241.0,96240.0,0.00046]
[1732551229520,0.051951,96240.0,96220.0,0.1557335]
[1732551229727,0.09299543,96228.0,96227.0,0.051957]
[1732551230324,0.1239939,96233.0,96224.0,0.3608]
[1732551230530,0.09300062,96226.0,96225.0,0.051958]
[1732551230826,0.00616187,96241.0,96226.0,0.051958]
[1732551230827,0.09300062,96227.0,96226.0,0.051958]
[1732551231019,0.00616187,96241.0,96226.0,0.051958]
[1732551231020,0.09300062,96232.0,96226.0,0.051958]
[1732551231221,0.09300062,96231.0,96226.0,0.051958]
[1732551231530,0.09300062,96231.0,96224.0,0.3608]
[1732551231531,0.09300062,96229.0,96224.0,0.3608]
[1732551231921,0.051957,96228.0,96226.0,0.051958]
[1732551232327,0.18580503,96244.0,96224.0,0.3608]
[1732551232328,0.09300062,96231.0,96224.0,0.3608]
[1732551232519,0.001,96228.0,96227.0,0.051957]
[1732551233322,0.1239939,96245.0,96241.0,0.05195]
[1732551233522,0.1239939,96244.0,96235.0,0.051953]
[1732551233725,0.09302049,96238.0,96229.0,0.051956]
[1732551233924,0.09302049,96237.0,96224.0,0.3608]
[1732551234128,0.1239939,96241.0,96224.0,0.3608]
[1732551234129,0.09302049,96235.0,96224.0,0.412759]
[1732551234326,0.09302049,96234.0,96224.0,0.412759]
[1732551234622,0.3608,96241.0,96224.0,0.412759]
[1732551234623,0.051958,96227.0,96224.0,0.3608]
[1732551235223,0.09302049,96227.0,96224.0,0.3608]
[1732551235424,0.051958,96226.0,96224.0,0.3608]
[1732551235820,0.051958,96226.0,96218.0,0.37718523]
[1732551235821,0.14497849,96226.0,96218.0,9.721e-05]
[1732551236129,0.1759559,96219.0,96218.0,9.721e-05]
[1732551236321,0.3608,96223.0,96220.0,0.051961]
[1732551236625,0.15496545,96224.0,96210.0,0.1557335]
[1732551236831,0.0929898,96216.0,96208.0,0.3608]
[1732551237017,0.1239864,96219.0,96208.0,0.3608]
[1732551237219,0.1239864,96218.0,96217.0,0.051963]
[1732551237421,0.1239864,96220.0,96217.0,0.412763]
[1732551237721,0.1239864,96224.0,96217.0,0.3608]
[1732551238033,0.01759859,96226.0,96217.0,0.3608]
[1732551238034,0.051962,96218.0,96217.0,0.3608]
[1732551238322,0.051968,96207.0,96193.0,0.412776]
[1732551238527,0.051968,96207.0,96195.0,0.051974]
[1732551238724,0.051972,96200.0,96189.0,0.051978]
[1732551238918,0.67264,96206.0,96183.0,0.068]
[1732551238919,0.02184138,96199.0,96195.0,0.051975]
[1732551239227,0.02184138,96198.0,96195.0,0.051975]
[1732551239524,0.001,96218.0,96193.0,0.3608]
[1732551239525,0.02184138,96201.0,96193.0,0.3608]
[1732551239829,0.54660503,96215.0,96199.0,0.051973]
[1732551239830,0.00910368,96200.0,96199.0,0.051973]
[1732551240125,0.02184138,96210.0,96204.0,0.051969]
[1732551240427,0.0309456,96209.0,96204.0,0.051969]
[1732551240617,0.00910422,96208.0,96201.0,0.3608]
[1732551240820,0.00910422,96207.0,96201.0,0.3608]
[1732551241022,0.00910422,96206.0,96201.0,0.3608]
[1732551241227,0.0309456,96205.0,96201.0,0.3608]
[1732551241425,0.0309456,96204.0,96201.0,0.3282935]
[1732551241725,0.0309456,96204.0,96190.0,0.1557335]
[1732551241726,0.001,96201.0,96192.0,0.3608]
[1732551241932,0.0309456,96200.0,96199.0,0.051973]
[1732551242328,0.00910422,96200.0,96199.0,0.051973]
[1732551242832,0.001,96205.0,96204.0,0.05197]
[1732551243022,0.13997096,96215.0,96207.0,0.051968]
[1732551243224,0.13997096,96215.0,96204.0,0.3608]
[1732551243420,0.13997096,96215.0,96211.0,0.051966]
[1732551243735,0.01602379,96215.0,96211.0,0.051966]
[1732551244033,0.1240604,96219.0,96217.0,0.051963]
[1732551244424,0.12394717,96226.0,96225.0,0.051958]
[1732551244726,0.00155958,96227.0,96225.0,0.412758]
[1732551246127,0.00255958,96227.0,96225.0,0.412758]
[1732551247330,0.00255958,96227.0,96225.0,0.3608]
[1732551247518,0.12394717,96226.0,96225.0,0.3608]
[1732551247723,0.00255958,96227.0,96225.0,0.3608]
[1732551248028,0.12668479,96227.0,96226.0,0.051958]
[1732551248222,0.00255958,96227.0,96226.0,0.051958]
[1732551248627,0.12674338,96227.0,96226.0,0.051958]
[1732551248830,0.00155958,96227.0,96226.0,0.051958]
[1732551249021,0.00255958,96227.0,96226.0,0.051958]
[1732551249227,0.001,96227.0,96226.0,0.051958]
[1732551249531,0.1241838,96228.0,96226.0,0.051958]
[1732551249728,0.36156,96244.0,96226.0,0.051958]
[1732551249729,0.001,96227.0,96226.0,0.051958]
[1732551250424,0.1241838,96230.0,96225.0,0.3608]
[1732551250425,0.12422559,96228.0,96225.0,0.3608]
[1732551250624,0.12422559,96228.0,96226.0,0.051958]
[1732551250921,0.15496545,96235.0,96225.0,0.3608]
[1732551251129,0.12423172,96228.0,96225.0,0.3608]
[1732551251424,0.12424964,96228.0,96225.0,0.3608]
[1732551251626,0.15496545,96234.0,96226.0,0.051958]
[1732551251627,0.12424964,96227.0,96226.0,0.051958]
[1732551252023,0.36156,96242.0,96232.0,0.051955]
[1732551252024,0.15496545,96236.0,96232.0,0.051955]
[1732551252226,0.001,96227.0,96226.0,0.051958]
[1732551252926,0.001,96227.0,96218.0,0.0667]
[1732551252927,0.001,96227.0,96205.0,0.4249]
[1732551253127,0.15496545,96224.0,96214.0,0.051964]
[1732551253424,0.15496545,96219.0,96210.0,0.1557335]
[1732551253625,0.15496545,96221.0,96219.0,0.051962]
[1732551253928,0.3608,96234.0,96223.0,0.05196]
[1732551253929,0.15496545,96224.0,96223.0,0.05196]
[1732551254133,0.18580503,96231.0,96225.0,0.051958]
[1732551254431,0.15539553,96227.0,96226.0,0.051958]
[1732551254620,0.05054585,96227.0,96226.0,0.051958]
[1732551254928,0.05054585,96227.0,96215.0,0.237]
[1732551255232,0.15541375,96220.0,96217.0,0.051963]
[1732551255426,0.15541375,96220.0,96215.0,0.237]
[1732551255630,0.15541375,96219.0,96217.0,0.051963]
[1732551255833,0.18580503,96219.0,96201.0,0.237]
[1732551256020,0.10250933,96218.0,96201.0,0.237]
[1732551256220,0.15548951,96209.0,96208.0,0.051968]
[1732551256731,0.18580503,96218.0,96217.0,0.051963]
[1732551256931,0.05055368,96218.0,96217.0,0.051963]
[1732551257123,0.05055368,96219.0,96217.0,0.051963]
[1732551257323,0.05055368,96218.0,96217.0,0.051963]
[1732551257518,0.05055368,96219.0,96217.0,0.051963]
[1732551257724,0.05055368,96218.0,96217.0,0.051963]
[1732551257924,0.02591979,96241.0,96217.0,0.5978]
[1732551257925,5.1e-07,96219.0,96217.0,0.5978]
[1732551258121,0.15548188,96230.0,96218.0,0.3118]
[1732551258323,0.02079781,96241.0,96233.0,0.051954]
[1732551258521,0.02079781,96241.0,96235.0,0.051953]
[1732551259035,0.3608,96239.0,96235.0,0.051953]
[1732551259435,0.3608,96239.0,96237.0,0.051952]
[1732551260132,0.3608,96239.0,96225.0,0.3608]
[1732551260332,0.15543828,96230.0,96225.0,0.3608]
[1732551260527,0.3618,96239.0,96237.0,0.051952]
[1732551260727,0.001,96239.0,96237.0,0.051952]
[1732551261330,0.001,96239.0,96238.0,0.90952]
[1732551261331,0.15641032,96239.0,96238.0,0.90952]
[1732551261630,0.001,96239.0,96238.0,0.90952]
[1732551262024,0.3634,96267.0,96239.0,0.051951]
[1732551262025,0.15541032,96250.0,96239.0,0.051951]
[1732551262230,0.15541032,96252.0,96247.0,0.3608]
[1732551262427,0.15541032,96252.0,96250.0,0.051945]
[1732551262634,0.15541032,96253.0,96252.0,0.051944]
[1732551262834,0.05349831,96261.0,96255.0,0.051942]
[1732551263040,0.05349831,96261.0,96247.0,0.3608]
[1732551263041,0.00155931,96261.0,96257.0,0.051941]
[1732551263338,0.00155931,96261.0,96247.0,0.3608]
[1732551263635,0.15525783,96253.0,96247.0,0.37754578]
[1732551263849,0.15525783,96254.0,96252.0,0.051944]
[1732551264138,0.15525783,96260.0,96255.0,0.051942]
[1732551264329,0.00155931,96261.0,96248.0,0.00831]
[1732551264330,0.15525783,96258.0,96248.0,0.00831]
[1732551264531,0.15525783,96260.0,96248.0,0.00831]
[1732551264731,0.00255931,96261.0,96259.0,0.05194]
[1732551265930,0.00155931,96261.0,96259.0,0.05194]
[1732551266730,0.00255931,96261.0,96259.0,0.05194]
[1732551267639,0.001,96261.0,96249.0,0.051945]
[1732551267839,0.001,96261.0,96245.0,0.3608]
[1732551268137,0.001,96261.0,96248.0,0.02493491]
[1732551268342,0.001,96261.0,96260.0,0.05194]
[1732551269130,0.001,96261.0,96260.0,0.4291406]
[1732551269338,0.001,96261.0,96260.0,0.3772006]
[1732551269535,0.001,96261.0,96260.0,0.4291406]
[1732551270029,0.02079657,96274.0,96273.0,0.051933]
[1732551270230,0.02079657,96274.0,96273.0,0.412733]
[1732551272454,0.02179657,96274.0,96273.0,0.412733]
[1732551272844,0.001,96274.0,96273.0,0.412733]
[1732551273742,0.001,96274.0,96273.0,0.42870629]
[1732551274444,0.001,96274.0,96273.0,0.66502629]
[1732551274849,0.001,96274.0,96273.0,0.97662629]
[1732551275442,0.001,96274.0,96273.0,0.74030629]
[1732551275647,0.001,96274.0,96273.0,0.66502629]
[1732551275845,0.001,96274.0,96273.0,0.97662629]
[1732551276443,0.002,96274.0,96273.0,0.97662629]
[1732551276938,0.002,96274.0,96273.0,0.42870629]
[1732551277144,0.002,96274.0,96273.0,0.412733]
[1732551277345,0.002,96274.0,96273.0,0.3608]
[1732551278049,0.002,96274.0,96272.0,0.03228]
[1732551279654,0.001,96274.0,96272.0,0.03228]
[1732551279847,0.001,96274.0,96272.0,0.04058]
[1732551280246,0.001,96274.0,96273.0,0.051933]
[1732551280453,0.001,96274.0,96272.0,0.04058]
[1732551281146,0.052932,96274.0,96272.0,0.04058]
[1732551281343,0.3608,96273.0,96272.0,0.04058]
[1732551281549,0.3608,96273.0,96260.0,0.00012212]
[1732551281550,0.051939,96261.0,96260.0,0.00012212]
[1732551282051,0.31164,96261.0,96250.0,0.051945]
[1732551282352,0.3608,96253.0,96243.0,0.3608]
[1732551282551,0.3608,96244.0,96223.0,0.01909625]
[1732551282758,0.051958,96225.0,96224.0,0.051959]
[1732551282947,0.41285497,96225.0,96224.0,0.051959]
[1732551283146,0.36089697,96225.0,96224.0,0.051959]
[1732551284345,0.36189697,96225.0,96224.0,0.051959]
[1732551286053,0.36089697,96225.0,96224.0,0.051959]
[1732551286248,0.36189697,96225.0,96224.0,0.051959]
[1732551286956,0.00109697,96225.0,96224.0,0.051959]
[1732551290859,0.00109697,96225.0,96223.0,0.01138]
[1732551290860,0.05305497,96225.0,96223.0,0.01138]
[1732551292148,0.3608,96224.0,96223.0,0.01138]
[1732551293063,0.4299,96224.0,96223.0,0.01138]
[1732551294363,0.4299,96224.0,96223.0,0.00773]
[1732551294549,0.4309,96224.0,96223.0,0.00773]
[1732551295257,0.0701,96224.0,96223.0,0.00773]
[1732551295664,0.4309,96224.0,96223.0,0.00773]
[1732551296257,0.3618,96224.0,96223.0,0.00773]
[1732551296750,0.001,96224.0,96223.0,0.00773]
[1732551298654,0.001,96224.0,96223.0,0.36853]
[1732551300455,0.26243697,96225.0,96224.0,0.051959]
[1732551300762,0.05203697,96225.0,96224.0,0.051959]
[1732551300951,0.05203697,96225.0,96224.0,0.351959]
[1732551301570,0.05208333,96225.0,96224.0,0.351959]
[1732551302261,0.02080106,96252.0,96244.0,0.051948]
[1732551303057,0.3608,96248.0,96206.0,0.18497851]
[1732551303268,0.10374405,96240.0,96214.0,0.23584]
[1732551303454,0.1317,96244.0,96220.0,0.10374405]
[1732551303659,0.1317,96244.0,96214.0,0.287804]
[1732551303660,0.001,96225.0,96224.0,0.051959]
[1732551304060,0.001,96225.0,96224.0,0.287799]
[1732551304275,0.15490579,96253.0,96251.0,0.051944]
[1732551304459,0.1453967,96254.0,96243.0,0.3608]
[1732551304661,0.05203,96260.0,96259.0,0.05194]
[1732551304962,0.05194,96260.0,96252.0,0.3608]
[1732551305162,0.051938,96264.0,96250.0,0.051945]
[1732551305372,0.051938,96264.0,96243.0,0.3608]
[1732551305373,0.051938,96264.0,96253.0,0.051943]
[1732551305562,0.10530292,96270.0,96244.0,0.23584]
[1732551305563,0.00155887,96270.0,96255.0,0.051942]
[1732551305960,0.051938,96264.0,96244.0,0.23584]
[1732551306273,0.10374405,96260.0,96244.0,0.01666071]
[1732551306458,0.10374405,96260.0,96243.0,0.3608]
[1732551306459,0.051937,96266.0,96250.0,0.10374405]
[1732551306660,0.37684492,96267.0,96253.0,0.3608]
[1732551306856,0.051939,96261.0,96253.0,0.3608]
[1732551307268,0.37684492,96267.0,96249.0,0.051945]
[1732551307459,0.37684492,96267.0,96243.0,0.37680562]
[1732551307460,0.3608,96258.0,96243.0,0.37680562]
[1732551307657,0.3608,96258.0,96250.0,0.00366]
[1732551308465,0.051938,96263.0,96251.0,0.051944]
[1732551308772,0.051938,96263.0,96250.0,0.00366]
[1732551308773,0.37684492,96267.0,96256.0,0.412742]
[1732551309066,0.37684492,96267.0,96250.0,0.00366]
[1732551309269,0.37684492,96267.0,96259.0,0.05194]
[1732551309472,0.02080106,96268.0,96251.0,0.3608]
[1732551309473,0.3608,96265.0,96251.0,0.3608]
[1732551309667,0.38160106,96268.0,96264.0,0.051937]
[1732551310364,0.38160106,96268.0,96253.0,0.3608]
[1732551310365,0.38160106,96268.0,96258.0,0.05194]
[1732551310963,0.56741344,96268.0,96253.0,0.3608]
[1732551311158,0.051938,96264.0,96253.0,0.3608]
[1732551311360,0.051938,96264.0,96253.0,0.412743]
[1732551311556,0.18581238,96265.0,96253.0,0.3608]
[1732551311870,0.38236106,96268.0,96253.0,0.3608]
[1732551311871,0.05194,96259.0,96253.0,0.3608]
[1732551312072,0.051941,96258.0,96253.0,0.3608]
[1732551312871,0.051941,96258.0,96253.0,0.37690317]
[1732551313062,0.051938,96264.0,96254.0,0.00773]
[1732551313467,0.3608,96265.0,96254.0,0.00773]
[1732551313774,0.05194,96261.0,96254.0,0.00773]
[1732551313978,0.02080106,96268.0,96254.0,0.00773]
[1732551314271,0.051936,96268.0,96254.0,0.00773]
[1732551314475,0.051936,96267.0,96262.0,0.3608]
[1732551314681,0.00155887,96270.0,96262.0,0.3608]
[1732551314976,0.00155887,96270.0,96256.0,0.051941]
[1732551314977,0.051939,96261.0,96256.0,0.3608]
[1732551315173,0.36235887,96270.0,96256.0,0.3608]
[1732551315174,0.41429287,96270.0,96256.0,0.3608]
[1732551315362,0.41429287,96270.0,96261.0,0.051939]
[1732551315768,0.41429287,96270.0,96262.0,0.051938]
[1732551315971,0.00155887,96270.0,96265.0,0.3608]
[1732551316479,0.02079154,96269.0,96265.0,0.3608]
[1732551316679,0.02079154,96269.0,96267.0,0.051936]
[1732551317470,0.00155887,96270.0,96267.0,0.051936]
[1732551317665,0.00155887,96270.0,96269.0,0.051935]
[1732551317871,0.3608,96279.0,96272.0,0.051933]
[1732551318071,0.051928,96282.0,96273.0,0.3608]
[1732551318274,0.12403695,96278.0,96273.0,0.3608]
[1732551318577,0.02080106,96284.0,96273.0,0.412732]
[1732551318785,0.18581238,96290.0,96289.0,0.051924]
[1732551319074,0.18581238,96290.0,96283.0,0.3608]
[1732551319075,0.051922,96294.0,96283.0,0.412727]
[1732551319372,0.051922,96294.0,96283.0,0.3608]
[1732551319577,0.3608,96298.0,96283.0,0.3608]
[1732551319776,0.3608,96298.0,96293.0,0.051921]
[1732551320881,0.3608,96298.0,96289.0,0.051924]
[1732551321966,0.412719,96298.0,96289.0,0.051924]
[1732551322676,0.412719,96298.0,96283.0,0.3608]
[1732551322677,0.3608,96298.0,96283.0,0.3608]
[1732551322872,0.12080106,96300.0,96291.0,0.3608]
[1732551323069,0.12080106,96300.0,96293.0,0.051921]
[1732551323268,0.12080106,96300.0,96291.0,0.3608]
[1732551323269,0.1,96300.0,96291.0,0.3608]
[1732551323471,0.1,96300.0,96299.0,0.3608]
[1732551323889,0.1,96300.0,96299.0,0.67232]
[1732551324774,0.1,96300.0,96299.0,0.90744]
[1732551327072,0.1,96300.0,96299.0,0.59592]
[1732551327879,0.1,96300.0,96299.0,0.92372057]
[1732551328069,0.00155802,96320.0,96299.0,0.92372057]
[1732551328276,0.00155802,96320.0,96318.0,0.051908]
[1732551328570,0.14461814,96332.0,96317.0,0.3608]
[1732551328774,0.02080106,96332.0,96318.0,0.051908]
[1732551328982,0.02080106,96332.0,96320.0,0.10374405]
[1732551329780,0.051902,96330.0,96322.0,0.051906]
[1732551330477,0.051902,96330.0,96323.0,0.00367]
[1732551330876,0.051902,96330.0,96323.0,0.055576]
[1732551331389,0.02080106,96332.0,96324.0,0.051905]
[1732551331888,0.4127,96334.0,96323.0,0.02001414]
[1732551331889,0.3608,96334.0,96323.0,0.02001414]
[1732551332178,0.051897,96339.0,96329.0,0.3608]
[1732551332384,0.051897,96339.0,96329.0,0.59584]
[1732551332570,0.0672,96341.0,96331.0,0.051901]
[1732551332971,0.0672,96341.0,96333.0,0.0519]
[1732551333383,0.119096,96341.0,96333.0,0.0519]
[1732551333581,0.0672,96341.0,96329.0,0.59636]
[1732551333882,0.3608,96336.0,96329.0,0.3608]
[1732551334080,0.051902,96330.0,96323.0,0.02001414]
[1732551334584,0.02077732,96336.0,96323.0,0.02001414]
[1732551334780,0.38157732,96336.0,96323.0,0.02001414]
[1732551335082,0.38157732,96336.0,96328.0,0.051903]
[1732551335476,0.38157732,96336.0,96329.0,0.051902]
[1732551335971,0.38157732,96336.0,96328.0,0.051903]
[1732551336172,0.12381708,96342.0,96331.0,0.051901]
[1732551336380,0.02233069,96341.0,96336.0,0.051898]
[1732551336686,0.12381708,96345.0,96337.0,0.3608]
[1732551336875,0.12381708,96355.0,96337.0,0.3608]
[1732551337197,0.01,96360.0,96354.0,0.051889]
[1732551337484,0.03666794,96359.0,96356.0,0.051888]
[1732551337680,0.03666794,96358.0,96348.0,0.3608]
[1732551337893,0.03666794,96357.0,96348.0,0.3608]
[1732551338095,0.03666794,96356.0,96348.0,0.3608]
[1732551338275,0.01,96360.0,96348.0,0.3608]
[1732551338276,0.05186968,96355.0,96348.0,0.33743246]
[1732551338475,0.05186968,96354.0,96348.0,0.40568823]
[1732551338683,0.05186968,96353.0,96348.0,0.35379623]
[1732551338983,0.01,96360.0,96352.0,0.05189]
[1732551339681,0.01,96360.0,96356.0,0.051887]
[1732551340074,0.01,96360.0,96358.0,0.051887]
[1732551340281,0.01,96360.0,96358.0,0.412687]
[1732551341077,0.01,96360.0,96359.0,0.31132]
[1732551341778,0.01,96360.0,96348.0,0.33743246]
[1732551342084,0.3608,96357.0,96349.0,0.23496]
[1732551342480,0.01,96360.0,96349.0,0.286852]
[1732551342481,0.0689,96358.0,96349.0,0.286852]
[1732551342782,0.0689,96358.0,96335.0,0.3608]
[1732551342783,0.0689,96358.0,96350.0,0.00773]
[1732551343786,0.3608,96351.0,96350.0,0.00773]
[1732551343989,0.3608,96351.0,96329.0,0.05201081]
[1732551343990,0.10374405,96345.0,96329.0,0.00010881]
[1732551344286,0.3608,96334.0,96329.0,0.00010881]
[1732551344478,0.051902,96330.0,96329.0,0.00010881]
[1732551344878,0.051902,96330.0,96310.0,0.3608]
[1732551344879,0.051905,96324.0,96310.0,0.3608]
[1732551345075,0.412705,96324.0,96310.0,0.3608]
[1732551345280,0.412705,96324.0,96293.0,0.3608]
[1732551345281,0.724145,96324.0,96293.0,0.3608]
[1732551345498,0.051912,96312.0,96296.0,0.01622307]
[1732551345784,8.308e-05,96311.0,96276.0,0.0026]
[1732551345984,0.051926,96286.0,96265.0,8.19e-05]
[1732551346192,0.3608,96288.0,96265.0,8.19e-05]
[1732551346193,0.051932,96274.0,96265.0,8.19e-05]
[1732551346380,0.051936,96266.0,96265.0,8.19e-05]
[1732551346689,0.051936,96266.0,96235.0,0.3608]
[1732551346690,0.0611485,96266.0,96235.0,0.3608]
[1732551346982,0.3608,96261.0,96243.0,0.051948]
[1732551347192,0.00911331,96260.0,96252.0,0.051944]
[1732551347386,0.12381708,96258.0,96250.0,0.10374405]
[1732551347580,0.00911331,96257.0,96256.0,0.051942]
[1732551348188,0.12381708,96265.0,96256.0,0.67248]
[1732551348484,9.919e-05,96266.0,96264.0,0.051937]
[1732551349080,9.919e-05,96266.0,96256.0,0.37689547]
[1732551349291,0.051937,96264.0,96256.0,0.37689547]
[1732551349491,0.04392656,96263.0,96256.0,0.31842517]
[1732551349684,0.04392656,96262.0,96256.0,0.31842517]
[1732551349989,0.12381708,96260.0,96256.0,0.01609547]
[1732551350182,0.16774364,96259.0,96250.0,0.15543257]